[Event "*** Titled Tuesday Blitz"]
[Site "Chess.com"]
[Date "2019.11.05"]
[Round "2"]
[White "Zaven_ChessMood"]
[Black "LimeInTheCoconut"]
[Result "1-0"]
[WhiteElo "2862"]
[BlackElo "2450"]
[TimeControl "180+2"]
[EndTime "13:23:16 PST"]
[Termination "Zaven_ChessMood won by resignation"]

1. e4 {[%clk 0:03:01.9]} 1... c5 {[%clk 0:02:58.7]} 2. Nc3 {[%clk 0:03:02.4]}
2... Nc6 {[%clk 0:02:59.4]} 3. Bb5 {[%clk 0:03:02.5]} 3... Nd4 {[%clk
0:03:00.3]} 4. Nf3 {[%clk 0:03:02.7]} 4... a6 {[%clk 0:02:54.6]} 5. Bd3 {[%clk
0:03:02.7]} 5... Nc6 {[%clk 0:02:40.8]} 6. Be2 {[%clk 0:03:01.8]} 6... g6 {[%clk
0:02:39.8]} 7. d4 {[%clk 0:03:02.7]} 7... cxd4 {[%clk 0:02:41.4]} 8. Nxd4 {[%clk
0:03:04.6]} 8... Bg7 {[%clk 0:02:42.9]} 9. Be3 {[%clk 0:03:04.4]} 9... d6 {[%clk
0:02:37.7]} 10. O-O {[%clk 0:03:01.4]} 10... Nf6 {[%clk 0:02:38.4]} 11. Qd2
{[%clk 0:03:00.9]} 11... O-O {[%clk 0:02:39.1]} 12. Rad1 {[%clk 0:03:02]} 12...
Bd7 {[%clk 0:02:37]} 13. h3 {[%clk 0:02:57.8]} 13... Nxd4 {[%clk 0:02:37.6]} 14.
Bxd4 {[%clk 0:02:56.6]} 14... Bc6 {[%clk 0:02:38.7]} 15. Bf3 {[%clk 0:02:54.2]}
15... Nd7 {[%clk 0:02:33.1]} 16. Nd5 {[%clk 0:02:47.1]} 16... Bxd4 {[%clk
0:02:21.1]} 17. Qxd4 {[%clk 0:02:44.9]} 17... Rc8 {[%clk 0:02:18.2]} 18. c3
{[%clk 0:02:44.4]} 18... Re8 {[%clk 0:02:16.2]} 19. Rfe1 {[%clk 0:02:39.2]}
19... Qa5 {[%clk 0:02:09.4]} 20. a3 {[%clk 0:02:38.5]} 20... Qc5 {[%clk
0:02:09.2]} 21. Qd2 {[%clk 0:02:39]} 21... Ne5 {[%clk 0:02:01.4]} 22. Be2 {[%clk
0:02:39.4]} 22... Bb5 {[%clk 0:01:27.3]} 23. Bxb5 {[%clk 0:02:38.1]} 23... Qxb5
{[%clk 0:01:23.7]} 24. Re2 {[%clk 0:02:34.8]} 24... Nc4 {[%clk 0:01:20.9]} 25.
Qc1 {[%clk 0:02:33.9]} 25... a5 {[%clk 0:01:17.9]} 26. Rde1 {[%clk 0:02:28.3]}
26... Qc5 {[%clk 0:01:07.2]} 27. h4 {[%clk 0:02:28]} 27... Nb6 {[%clk 0:00:57]}
28. Rd1 {[%clk 0:02:26.9]} 28... Nd7 {[%clk 0:00:49.3]} 29. h5 {[%clk
0:02:26.3]} 29... e6 {[%clk 0:00:47.3]} 30. Nf4 {[%clk 0:02:26]} 30... Ne5
{[%clk 0:00:44.6]} 31. Re3 {[%clk 0:02:24.3]} 31... a4 {[%clk 0:00:43.9]} 32.
Rh3 {[%clk 0:02:24]} 32... Qc7 {[%clk 0:00:33]} 33. hxg6 {[%clk 0:02:23.9]}
33... fxg6 {[%clk 0:00:31.7]} 34. Nd3 {[%clk 0:02:25.4]} 34... Nc4 {[%clk
0:00:28.7]} 35. Nb4 {[%clk 0:02:25.8]} 35... Qg7 {[%clk 0:00:28.8]} 36. Rhd3
{[%clk 0:02:24.2]} 36... Rf8 {[%clk 0:00:28.4]} 37. Nc2 {[%clk 0:02:24.6]} 37...
Qe5 {[%clk 0:00:26.3]} 38. Ne3 {[%clk 0:02:22.7]} 38... Nxe3 {[%clk 0:00:24.8]}
39. Qxe3 {[%clk 0:02:23.2]} 39... Rc6 {[%clk 0:00:23.7]} 40. Rd4 {[%clk
0:02:24.2]} 40... b5 {[%clk 0:00:23.9]} 41. R1d3 {[%clk 0:02:23]} 41... Rf4
{[%clk 0:00:18.3]} 42. g3 {[%clk 0:02:21.5]} 42... Rf8 {[%clk 0:00:18.6]} 43.
Qd2 {[%clk 0:02:22]} 43... Rd8 {[%clk 0:00:18.4]} 44. Kg2 {[%clk 0:02:21.8]}
44... Qc5 {[%clk 0:00:18]} 45. f4 {[%clk 0:02:22.2]} 45... Qb6 {[%clk
0:00:17.7]} 46. Qd1 {[%clk 0:02:22.3]} 46... Qc7 {[%clk 0:00:18]} 47. Qg4 {[%clk
0:02:23.1]} 47... Qf7 {[%clk 0:00:17.8]} 48. Rd1 {[%clk 0:02:24.2]} 48... Rd7
{[%clk 0:00:12.8]} 49. Qg5 {[%clk 0:02:24.8]} 49... Rc5 {[%clk 0:00:13.7]} 50.
Qxc5 {[%clk 0:02:24]} 50... dxc5 {[%clk 0:00:15]} 51. Rxd7 {[%clk 0:02:25.9]}
51... Qf6 {[%clk 0:00:12.6]} 52. R1d6 {[%clk 0:02:25.4]} 52... g5 {[%clk
0:00:08.8]} 53. Rc6 {[%clk 0:02:26.3]} 53... gxf4 {[%clk 0:00:09.5]} 54. Rc8+
{[%clk 0:02:27]} 1-0

[Event "*** Titled Tuesday Blitz"]
[Site "Chess.com"]
[Date "2019.11.05"]
[Round "2"]
[White "Astaneh"]
[Black "GHANDEEVAM2003"]
[Result "0-1"]
[WhiteElo "2644"]
[BlackElo "3004"]
[TimeControl "180+2"]
[EndTime "13:23:41 PST"]
[Termination "GHANDEEVAM2003 won by resignation"]

1. d4 {[%clk 0:03:01.6]} 1... Nf6 {[%clk 0:02:59.6]} 2. c4 {[%clk 0:03:00.4]}
2... e6 {[%clk 0:02:59.5]} 3. Nf3 {[%clk 0:03:01.5]} 3... d5 {[%clk 0:03:00]} 4.
g3 {[%clk 0:03:02.6]} 4... dxc4 {[%clk 0:02:59.3]} 5. Qa4+ {[%clk 0:03:03.1]}
5... c6 {[%clk 0:02:54.5]} 6. Qxc4 {[%clk 0:03:03.9]} 6... b5 {[%clk 0:02:54.9]}
7. Qc2 {[%clk 0:03:04.7]} 7... Bb7 {[%clk 0:02:56]} 8. Bg2 {[%clk 0:03:05.1]}
8... Nbd7 {[%clk 0:02:56.4]} 9. O-O {[%clk 0:03:05.3]} 9... Rc8 {[%clk
0:02:57.4]} 10. a4 {[%clk 0:03:04.5]} 10... a6 {[%clk 0:02:55.3]} 11. Ne5 {[%clk
0:02:58.8]} 11... Qb6 {[%clk 0:02:47.5]} 12. Be3 {[%clk 0:02:46.7]} 12... Nd5
{[%clk 0:02:10.5]} 13. Nxd7 {[%clk 0:02:41.5]} 13... Kxd7 {[%clk 0:02:10.8]} 14.
Nc3 {[%clk 0:02:20.8]} 14... f5 {[%clk 0:01:57.9]} 15. axb5 {[%clk 0:02:14.1]}
15... cxb5 {[%clk 0:01:53.2]} 16. Bxd5 {[%clk 0:02:12.4]} 16... exd5 {[%clk
0:01:43.1]} 17. Qxf5+ {[%clk 0:02:13.1]} 17... Qe6 {[%clk 0:01:44.6]} 18. Qxe6+
{[%clk 0:01:56.8]} 18... Kxe6 {[%clk 0:01:46.5]} 19. Rfc1 {[%clk 0:01:53.8]}
19... Bb4 {[%clk 0:01:42]} 20. Bd2 {[%clk 0:01:49.2]} 20... Rc4 {[%clk
0:01:39.5]} 21. e3 {[%clk 0:01:17]} 21... Rhc8 {[%clk 0:01:40]} 22. Kf1 {[%clk
0:01:18.5]} 22... a5 {[%clk 0:01:37.7]} 23. Ke1 {[%clk 0:01:17.4]} 23... Bxc3
{[%clk 0:00:57.4]} 24. Rxc3 {[%clk 0:01:15.2]} 24... a4 {[%clk 0:00:49.6]} 25.
f3 {[%clk 0:00:52.7]} 25... g5 {[%clk 0:00:49.9]} 26. Rac1 {[%clk 0:00:33.2]}
26... h5 {[%clk 0:00:44.9]} 27. h3 {[%clk 0:00:34.3]} 27... g4 {[%clk
0:00:41.5]} 28. fxg4 {[%clk 0:00:32.6]} 28... hxg4 {[%clk 0:00:43.4]} 29. h4
{[%clk 0:00:34.5]} 29... Rf8 {[%clk 0:00:38.3]} 30. Rxc4 {[%clk 0:00:34.7]}
30... dxc4 {[%clk 0:00:38.9]} 31. e4 {[%clk 0:00:16.9]} 31... Bxe4 {[%clk
0:00:39.5]} 32. Bf4 {[%clk 0:00:18.8]} 32... Kd5 {[%clk 0:00:40.3]} 33. Kd2
{[%clk 0:00:19.7]} 33... b4 {[%clk 0:00:40.3]} 34. Ke3 {[%clk 0:00:19.8]} 34...
a3 {[%clk 0:00:37.9]} 35. bxa3 {[%clk 0:00:21.3]} 35... b3 {[%clk 0:00:39.2]}
0-1

[Event "*** Titled Tuesday Blitz"]
[Site "Chess.com"]
[Date "2019.11.05"]
[Round "2"]
[White "CarrotsandPizza"]
[Black "Squirlolz"]
[Result "0-1"]
[WhiteElo "2233"]
[BlackElo "2507"]
[TimeControl "180+2"]
[EndTime "13:23:46 PST"]
[Termination "Squirlolz won by resignation"]

1. e4 {[%clk 0:03:01.9]} 1... c6 {[%clk 0:02:59.3]} 2. d4 {[%clk 0:03:02.3]}
2... d5 {[%clk 0:03:01.2]} 3. Nc3 {[%clk 0:03:02.9]} 3... dxe4 {[%clk
0:03:02.1]} 4. Nxe4 {[%clk 0:03:04.8]} 4... Bf5 {[%clk 0:03:03.5]} 5. Ng3 {[%clk
0:03:05.8]} 5... Bg6 {[%clk 0:03:04.9]} 6. h4 {[%clk 0:03:07.5]} 6... h6 {[%clk
0:03:05.9]} 7. f4 {[%clk 0:03:08.9]} 7... e6 {[%clk 0:03:06.6]} 8. Nf3 {[%clk
0:03:10.3]} 8... c5 {[%clk 0:03:01.3]} 9. h5 {[%clk 0:03:11.4]} 9... Bh7 {[%clk
0:03:02.2]} 10. Bd3 {[%clk 0:03:07.2]} 10... Bxd3 {[%clk 0:03:01.6]} 11. Qxd3
{[%clk 0:03:08.3]} 11... Nc6 {[%clk 0:03:01.4]} 12. Be3 {[%clk 0:03:05.6]} 12...
cxd4 {[%clk 0:02:42.4]} 13. Nxd4 {[%clk 0:03:07.5]} 13... Nxd4 {[%clk
0:02:43.6]} 14. Bxd4 {[%clk 0:03:08.6]} 14... Nf6 {[%clk 0:02:35.1]} 15. O-O-O
{[%clk 0:03:07.3]} 15... Bd6 {[%clk 0:02:30.7]} 16. Be5 {[%clk 0:03:02.7]} 16...
Bxe5 {[%clk 0:02:10.3]} 17. Qb5+ {[%clk 0:03:03]} 17... Ke7 {[%clk 0:02:07.1]}
18. fxe5 {[%clk 0:03:02.8]} 18... Nd5 {[%clk 0:02:00.1]} 19. Qxb7+ {[%clk
0:03:00.9]} 19... Qc7 {[%clk 0:02:01.1]} 20. Qxc7+ {[%clk 0:02:57.1]} 20... Nxc7
{[%clk 0:02:03]} 21. c4 {[%clk 0:02:57.8]} 21... Rhc8 {[%clk 0:02:02]} 22. Kb1
{[%clk 0:02:57.5]} 22... a5 {[%clk 0:02:01.2]} 23. Rd4 {[%clk 0:02:47.8]} 23...
a4 {[%clk 0:01:45.6]} 24. Rhd1 {[%clk 0:02:46.6]} 24... Ra5 {[%clk 0:01:46.6]}
25. Re4 {[%clk 0:02:02.4]} 25... Na6 {[%clk 0:01:42.8]} 26. b3 {[%clk
0:02:01.3]} 26... axb3 {[%clk 0:01:18.6]} 27. axb3 {[%clk 0:02:01.4]} 27... Nc5
{[%clk 0:01:16.5]} 28. Kb2 {[%clk 0:02:00.9]} 28... Nxe4 {[%clk 0:01:16.6]} 29.
Nxe4 {[%clk 0:02:01.4]} 29... Rxe5 {[%clk 0:01:17.7]} 30. Nc3 {[%clk 0:01:54.4]}
30... Rxh5 {[%clk 0:01:18.8]} 31. Rd2 {[%clk 0:01:49.1]} 31... Rh2 {[%clk
0:01:16]} 32. Nb5 {[%clk 0:01:48]} 32... h5 {[%clk 0:01:15.8]} 33. Kc3 {[%clk
0:01:48.6]} 33... h4 {[%clk 0:01:16.5]} 34. Nd6 {[%clk 0:01:47.5]} 34... Rb8
{[%clk 0:01:12.6]} 35. c5 {[%clk 0:01:46.9]} 35... h3 {[%clk 0:01:12.4]} 36. c6
{[%clk 0:01:41.5]} 36... hxg2 {[%clk 0:01:02.7]} 37. c7 {[%clk 0:01:29.3]} 37...
g1=Q {[%clk 0:00:45.5]} 38. cxb8=Q {[%clk 0:01:29.5]} 38... Qc1+ {[%clk
0:00:45.9]} 39. Rc2 {[%clk 0:01:00.5]} 39... Rxc2+ {[%clk 0:00:41.7]} 40. Kb4
{[%clk 0:01:01.8]} 40... Qd2+ {[%clk 0:00:41.6]} 41. Kb5 {[%clk 0:01:00]} 41...
Qd5+ {[%clk 0:00:42.1]} 42. Ka4 {[%clk 0:00:58.6]} 42... Qxd6 {[%clk 0:00:23.2]}
0-1

[Event "*** Titled Tuesday Blitz"]
[Site "Chess.com"]
[Date "2019.11.05"]
[Round "2"]
[White "ChessQueen"]
[Black "FairChess_on_YouTube"]
[Result "0-1"]
[WhiteElo "2666"]
[BlackElo "3031"]
[TimeControl "180+2"]
[EndTime "13:23:48 PST"]
[Termination "FairChess_on_YouTube won by resignation"]

1. e4 {[%clk 0:03:01.9]} 1... c6 {[%clk 0:03:00.6]} 2. Nf3 {[%clk 0:03:01.8]}
2... d5 {[%clk 0:03:01.3]} 3. Nc3 {[%clk 0:03:03.2]} 3... dxe4 {[%clk
0:02:57.9]} 4. Nxe4 {[%clk 0:03:03]} 4... Nf6 {[%clk 0:02:59.5]} 5. Qe2 {[%clk
0:03:04.4]} 5... Nxe4 {[%clk 0:02:59.5]} 6. Qxe4 {[%clk 0:03:05.7]} 6... Nd7
{[%clk 0:03:01]} 7. Bc4 {[%clk 0:02:59.8]} 7... Nf6 {[%clk 0:03:01.4]} 8. Qe2
{[%clk 0:02:48.5]} 8... Bf5 {[%clk 0:02:56.7]} 9. d4 {[%clk 0:02:32.4]} 9... e6
{[%clk 0:02:56.3]} 10. O-O {[%clk 0:02:32.1]} 10... Be7 {[%clk 0:02:48]} 11. Bb3
{[%clk 0:02:32.8]} 11... O-O {[%clk 0:02:47.9]} 12. c4 {[%clk 0:02:32.5]} 12...
Bg4 {[%clk 0:02:30.5]} 13. Be3 {[%clk 0:02:21]} 13... Ne4 {[%clk 0:02:27.5]} 14.
h3 {[%clk 0:02:21]} 14... Bh5 {[%clk 0:02:28.4]} 15. g4 {[%clk 0:02:16]} 15...
Bg6 {[%clk 0:02:28.3]} 16. Ne5 {[%clk 0:02:17.4]} 16... Bd6 {[%clk 0:02:02]} 17.
Nxg6 {[%clk 0:01:59.5]} 17... hxg6 {[%clk 0:02:03.9]} 18. Bc2 {[%clk 0:02:00.2]}
18... f5 {[%clk 0:02:02.7]} 19. Bxe4 {[%clk 0:01:28.9]} 19... fxe4 {[%clk
0:02:04.6]} 20. Bd2 {[%clk 0:01:29.9]} 20... Bf4 {[%clk 0:01:35.5]} 21. Bb4
{[%clk 0:01:13.1]} 21... Bd6 {[%clk 0:00:59]} 22. Bd2 {[%clk 0:00:58.3]} 22...
Rf3 {[%clk 0:00:41.1]} 23. Qxe4 {[%clk 0:00:55.5]} 23... Rxh3 {[%clk 0:00:42]}
24. Qxe6+ {[%clk 0:00:49.6]} 24... Kh7 {[%clk 0:00:41.6]} 25. g5 {[%clk
0:00:49.9]} 25... Rh5 {[%clk 0:00:29.7]} 26. f4 {[%clk 0:00:47]} 26... Bc5
{[%clk 0:00:26]} 27. dxc5 {[%clk 0:00:26.6]} 27... Qxd2 {[%clk 0:00:26]} 28. Rf2
{[%clk 0:00:28.5]} 28... Qd3 {[%clk 0:00:23.1]} 29. Kg2 {[%clk 0:00:24.3]} 29...
Re8 {[%clk 0:00:22.9]} 30. Qg4 {[%clk 0:00:25.5]} 30... Re3 {[%clk 0:00:20.6]}
31. f5 {[%clk 0:00:19.5]} 31... Rhh3 {[%clk 0:00:19.7]} 32. fxg6+ {[%clk
0:00:19.4]} 32... Kxg6 {[%clk 0:00:21.3]} 0-1

[Event "*** Titled Tuesday Blitz"]
[Site "Chess.com"]
[Date "2019.11.05"]
[Round "2"]
[White "Last7Samurai"]
[Black "nitpicker"]
[Result "1-0"]
[WhiteElo "2703"]
[BlackElo "2284"]
[TimeControl "180+2"]
[EndTime "13:23:50 PST"]
[Termination "Last7Samurai won by resignation"]

1. d4 {[%clk 0:03:01.9]} 1... Nf6 {[%clk 0:03:00.2]} 2. Bg5 {[%clk 0:03:01.3]}
2... d5 {[%clk 0:02:59.9]} 3. Nd2 {[%clk 0:02:58.9]} 3... c5 {[%clk 0:02:54.2]}
4. e3 {[%clk 0:02:59.5]} 4... Nc6 {[%clk 0:02:54]} 5. c3 {[%clk 0:02:59.7]} 5...
Qb6 {[%clk 0:02:49.1]} 6. Rb1 {[%clk 0:02:54.2]} 6... a5 {[%clk 0:02:46.6]} 7.
Bd3 {[%clk 0:02:52.8]} 7... e5 {[%clk 0:02:40.7]} 8. dxe5 {[%clk 0:02:29.7]}
8... Nxe5 {[%clk 0:02:40.5]} 9. Bc2 {[%clk 0:02:29.9]} 9... Bd7 {[%clk
0:02:38.7]} 10. Ngf3 {[%clk 0:02:27.9]} 10... Ng6 {[%clk 0:02:24.6]} 11. O-O
{[%clk 0:02:20.3]} 11... Be7 {[%clk 0:02:19.7]} 12. e4 {[%clk 0:02:15.7]} 12...
dxe4 {[%clk 0:02:02.4]} 13. Nxe4 {[%clk 0:02:10.5]} 13... Rd8 {[%clk 0:02:03.1]}
14. Bxf6 {[%clk 0:02:03.2]} 14... gxf6 {[%clk 0:01:48.7]} 15. Ba4 {[%clk
0:01:58]} 15... Bc6 {[%clk 0:01:41.6]} 16. Bxc6+ {[%clk 0:01:52.8]} 16... Qxc6
{[%clk 0:01:43.2]} 17. Qc2 {[%clk 0:01:52]} 17... O-O {[%clk 0:01:40.7]} 18.
Rfe1 {[%clk 0:01:44.8]} 18... Nf4 {[%clk 0:01:41]} 19. Ng3 {[%clk 0:01:41.7]}
19... Rfe8 {[%clk 0:01:14.1]} 20. Re4 {[%clk 0:01:34.9]} 20... Nd3 {[%clk
0:01:08.3]} 21. Rd1 {[%clk 0:01:17.9]} 21... c4 {[%clk 0:01:07]} 22. Nd4 {[%clk
0:01:17.1]} 22... Qc8 {[%clk 0:00:44.1]} 23. Qe2 {[%clk 0:01:06.2]} 23... Bc5
{[%clk 0:00:34.4]} 24. Ngf5 {[%clk 0:01:05.1]} 24... Bf8 {[%clk 0:00:26.2]} 25.
h4 {[%clk 0:00:28.9]} 25... Re5 {[%clk 0:00:18.3]} 26. Rxe5 {[%clk 0:00:23.1]}
26... fxe5 {[%clk 0:00:18.7]} 27. Qg4+ {[%clk 0:00:21.8]} 27... Kh8 {[%clk
0:00:19.1]} 28. Nf3 {[%clk 0:00:22.2]} 28... Qe6 {[%clk 0:00:17.2]} 29. Ng5
{[%clk 0:00:21.6]} 29... Qf6 {[%clk 0:00:12.5]} 30. Qh5 {[%clk 0:00:21.7]} 30...
h6 {[%clk 0:00:13.8]} 31. Nxf7+ {[%clk 0:00:22.1]} 31... Kh7 {[%clk 0:00:08.8]}
32. Nxd8 {[%clk 0:00:23.3]} 32... Nf4 {[%clk 0:00:06.6]} 33. Rd7+ {[%clk
0:00:21]} 33... Kg8 {[%clk 0:00:07.8]} 34. Qg4+ {[%clk 0:00:20.6]} 34... Kh8
{[%clk 0:00:07.9]} 35. Nf7+ {[%clk 0:00:21.4]} 1-0

[Event "*** Titled Tuesday Blitz"]
[Site "Chess.com"]
[Date "2019.11.05"]
[Round "2"]
[White "davigator"]
[Black "vlad10898"]
[Result "0-1"]
[WhiteElo "2298"]
[BlackElo "2630"]
[TimeControl "180+2"]
[EndTime "13:23:50 PST"]
[Termination "vlad10898 won by resignation"]

1. e4 {[%clk 0:03:01.9]} 1... c5 {[%clk 0:03:00.6]} 2. Nf3 {[%clk 0:03:02.1]}
2... d6 {[%clk 0:03:01.5]} 3. d4 {[%clk 0:03:02.2]} 3... cxd4 {[%clk 0:03:03.4]}
4. Nxd4 {[%clk 0:03:03.4]} 4... Nf6 {[%clk 0:03:04.9]} 5. Nc3 {[%clk 0:03:04.7]}
5... a6 {[%clk 0:03:06.4]} 6. Bg5 {[%clk 0:03:05.1]} 6... Nbd7 {[%clk
0:03:05.8]} 7. g4 {[%clk 0:03:05]} 7... b5 {[%clk 0:02:58.3]} 8. a3 {[%clk
0:03:04.8]} 8... Bb7 {[%clk 0:02:59.6]} 9. f3 {[%clk 0:03:05.5]} 9... e6 {[%clk
0:02:58.7]} 10. Qd2 {[%clk 0:03:06]} 10... Be7 {[%clk 0:02:59.9]} 11. h4 {[%clk
0:03:06.5]} 11... Qc7 {[%clk 0:02:53.3]} 12. O-O-O {[%clk 0:03:06.7]} 12... Nb6
{[%clk 0:02:50.9]} 13. Rg1 {[%clk 0:02:57.3]} 13... Nc4 {[%clk 0:02:28.1]} 14.
Bxc4 {[%clk 0:02:57]} 14... Qxc4 {[%clk 0:02:29.7]} 15. Kb1 {[%clk 0:02:57.9]}
15... Rc8 {[%clk 0:02:28.8]} 16. Be3 {[%clk 0:02:57]} 16... d5 {[%clk
0:02:27.5]} 17. e5 {[%clk 0:02:57.3]} 17... Nd7 {[%clk 0:02:28.1]} 18. f4 {[%clk
0:02:57.8]} 18... Bxa3 {[%clk 0:02:21.8]} 19. Ncxb5 {[%clk 0:02:58]} 19... axb5
{[%clk 0:02:11.1]} 20. bxa3 {[%clk 0:02:58.4]} 20... Nc5 {[%clk 0:01:50.4]} 21.
Qb4 {[%clk 0:02:53.8]} 21... Ba6 {[%clk 0:01:42]} 22. Rg2 {[%clk 0:02:46.8]}
22... Ne4 {[%clk 0:01:36.9]} 23. Kb2 {[%clk 0:02:41.9]} 23... Kd7 {[%clk
0:01:18.1]} 24. f5 {[%clk 0:02:41.1]} 24... Qxb4+ {[%clk 0:01:09]} 25. axb4
{[%clk 0:02:41.1]} 25... Rc4 {[%clk 0:01:10.7]} 26. Kb3 {[%clk 0:02:36.5]} 26...
Rc3+ {[%clk 0:01:10]} 27. Kb2 {[%clk 0:02:34.6]} 27... Rxe3 {[%clk 0:01:10.8]}
28. fxe6+ {[%clk 0:02:34.1]} 28... fxe6 {[%clk 0:01:10.2]} 29. Rf1 {[%clk
0:02:35.3]} 29... Ke7 {[%clk 0:01:01.9]} 30. Ra1 {[%clk 0:02:32.6]} 30... Ra8
{[%clk 0:01:02.9]} 31. Ra5 {[%clk 0:02:25.5]} 31... Nc3 {[%clk 0:00:55.7]} 32.
Kc1 {[%clk 0:02:11.4]} 32... Bb7 {[%clk 0:00:51.6]} 33. Rxa8 {[%clk 0:02:08.4]}
33... Bxa8 {[%clk 0:00:52.4]} 34. Kd2 {[%clk 0:02:08.2]} 34... Rh3 {[%clk
0:00:53]} 35. h5 {[%clk 0:02:02.6]} 35... Ne4+ {[%clk 0:00:51.9]} 36. Kc1 {[%clk
0:02:03.2]} 36... Rg3 {[%clk 0:00:47]} 37. Rxg3 {[%clk 0:01:58.5]} 37... Nxg3
{[%clk 0:00:48.1]} 38. Kd2 {[%clk 0:02:00.4]} 38... Ne4+ {[%clk 0:00:46.6]} 39.
Ke3 {[%clk 0:01:59.9]} 39... Bb7 {[%clk 0:00:34.6]} 40. Nxb5 {[%clk 0:01:59.9]}
40... Ba6 {[%clk 0:00:36.1]} 41. Nd4 {[%clk 0:02:00.3]} 41... Nc3 {[%clk
0:00:37.2]} 42. Kd2 {[%clk 0:01:55.9]} 42... Nb5 {[%clk 0:00:33.4]} 43. Nf3
{[%clk 0:01:55]} 43... d4 {[%clk 0:00:25.2]} 44. Kd3 {[%clk 0:01:55.4]} 44...
Kd7 {[%clk 0:00:25.4]} 45. Ng5 {[%clk 0:01:51.8]} 45... Kc6 {[%clk 0:00:21.5]}
46. Nxe6 {[%clk 0:01:49]} 46... Nc7+ {[%clk 0:00:22.4]} 47. Kxd4 {[%clk
0:01:49]} 47... Nxe6+ {[%clk 0:00:23.7]} 48. Ke4 {[%clk 0:01:50.9]} 48... Bc4
{[%clk 0:00:22.5]} 49. c3 {[%clk 0:01:48.2]} 49... g6 {[%clk 0:00:21.9]} 50.
hxg6 {[%clk 0:01:42.7]} 50... hxg6 {[%clk 0:00:23.2]} 51. Kf3 {[%clk 0:01:42.1]}
51... Kd5 {[%clk 0:00:24.2]} 0-1

[Event "*** Titled Tuesday Blitz"]
[Site "Chess.com"]
[Date "2019.11.05"]
[Round "2"]
[White "VincentKeymer"]
[Black "Bryakin_Mikhail"]
[Result "1-0"]
[WhiteElo "2534"]
[BlackElo "2716"]
[TimeControl "180+2"]
[EndTime "13:23:55 PST"]
[Termination "VincentKeymer won by resignation"]

1. Nf3 {[%clk 0:02:51.6]} 1... d5 {[%clk 0:02:57.3]} 2. e3 {[%clk 0:02:52.5]}
2... Nf6 {[%clk 0:02:57.3]} 3. c4 {[%clk 0:02:54.4]} 3... c6 {[%clk 0:02:58]} 4.
d4 {[%clk 0:02:54.7]} 4... Bf5 {[%clk 0:02:55.8]} 5. Nc3 {[%clk 0:02:55.2]} 5...
e6 {[%clk 0:02:57.2]} 6. Nh4 {[%clk 0:02:55.4]} 6... Be4 {[%clk 0:02:58.6]} 7.
f3 {[%clk 0:02:55.7]} 7... Bg6 {[%clk 0:02:59.5]} 8. g3 {[%clk 0:02:55.6]} 8...
Be7 {[%clk 0:02:54.9]} 9. Bd2 {[%clk 0:02:56.3]} 9... Nbd7 {[%clk 0:02:52.5]}
10. Qb3 {[%clk 0:02:47.4]} 10... Qb6 {[%clk 0:02:48]} 11. Nxg6 {[%clk
0:02:43.3]} 11... hxg6 {[%clk 0:02:45.6]} 12. c5 {[%clk 0:02:44.2]} 12... Qc7
{[%clk 0:02:44.6]} 13. O-O-O {[%clk 0:02:40.5]} 13... b6 {[%clk 0:02:36.6]} 14.
cxb6 {[%clk 0:02:39.5]} 14... axb6 {[%clk 0:02:37.7]} 15. Kb1 {[%clk 0:02:38.7]}
15... c5 {[%clk 0:02:36.9]} 16. e4 {[%clk 0:02:32.3]} 16... dxe4 {[%clk
0:02:29]} 17. d5 {[%clk 0:02:32.6]} 17... Ne5 {[%clk 0:00:59.2]} 18. fxe4 {[%clk
0:02:20.7]} 18... exd5 {[%clk 0:00:51.3]} 19. Bb5+ {[%clk 0:02:19.3]} 19... Kf8
{[%clk 0:00:51.4]} 20. exd5 {[%clk 0:02:17.9]} 20... Bd6 {[%clk 0:00:52.6]} 21.
Bf4 {[%clk 0:02:07.4]} 21... Rd8 {[%clk 0:00:22.5]} 22. Bc6 {[%clk 0:01:40.1]}
22... Qb8 {[%clk 0:00:13.3]} 23. Nb5 {[%clk 0:01:40]} 23... Ne8 {[%clk 0:00:04]}
24. Bxe5 {[%clk 0:01:24.6]} 24... Bxe5 {[%clk 0:00:04.8]} 25. Bxe8 {[%clk
0:01:25.7]} 25... Rxe8 {[%clk 0:00:05.5]} 26. d6 {[%clk 0:01:26.9]} 26... Rd8
{[%clk 0:00:06.2]} 27. Rhf1 {[%clk 0:01:25.5]} 27... Bf6 {[%clk 0:00:06.9]} 28.
h4 {[%clk 0:01:23.2]} 28... Rh5 {[%clk 0:00:08.1]} 29. Rfe1 {[%clk 0:01:13.9]}
29... Re5 {[%clk 0:00:05]} 30. Rxe5 {[%clk 0:01:09.6]} 30... Bxe5 {[%clk
0:00:06.9]} 31. Qd5 {[%clk 0:01:10.5]} 31... Bxg3 {[%clk 0:00:07.9]} 32. Rd3
{[%clk 0:00:59.2]} 32... Bh2 {[%clk 0:00:08]} 33. h5 {[%clk 0:00:54.9]} 33...
Qc8 {[%clk 0:00:08.7]} 34. Rf3 {[%clk 0:00:50.5]} 34... Qd7 {[%clk 0:00:04.4]}
35. hxg6 {[%clk 0:00:50.9]} 35... f6 {[%clk 0:00:05.6]} 36. Rh3 {[%clk
0:00:47.1]} 36... Bxd6 {[%clk 0:00:05]} 37. Rh8+ {[%clk 0:00:47]} 1-0